[Event "GrandPrix_29.05"]
[Site "Chess.com"]
[Date "2020.05.29"]
[Round "3"]
[White "Velis23"]
[Black "wnstop"]
[Result "1-0"]
[WhiteElo "2460"]
[BlackElo "2085"]
[TimeControl "600+2"]
[EndTime "10:27:28 PDT"]
[Termination "Velis23 won by resignation"]

1. d4 {[%clk 0:10:01.9]} 1... Nf6 {[%clk 0:09:49.4]} 2. Bf4 {[%clk 0:10:00.7]}
2... g6 {[%clk 0:09:50]} 3. e3 {[%clk 0:09:59.7]} 3... Bg7 {[%clk 0:09:50.2]} 4.
Nf3 {[%clk 0:10:00.1]} 4... d6 {[%clk 0:09:50.2]} 5. h3 {[%clk 0:10:00.8]} 5...
c5 {[%clk 0:09:49.5]} 6. c3 {[%clk 0:10:00.9]} 6... Qb6 {[%clk 0:09:48.6]} 7.
Qb3 {[%clk 0:09:59]} 7... Be6 {[%clk 0:09:44.2]} 8. Qxb6 {[%clk 0:09:57.2]} 8...
axb6 {[%clk 0:09:46.1]} 9. a3 {[%clk 0:09:52]} 9... Bd5 {[%clk 0:08:43.9]} 10.
Nbd2 {[%clk 0:09:37.2]} 10... Bc6 {[%clk 0:08:31.3]} 11. Bd3 {[%clk 0:09:21.2]}
11... Nbd7 {[%clk 0:08:26.4]} 12. O-O {[%clk 0:08:45]} 12... O-O {[%clk
0:08:05.2]} 13. e4 {[%clk 0:08:44.5]} 13... d5 {[%clk 0:07:35.7]} 14. e5 {[%clk
0:07:50.8]} 14... Ne8 {[%clk 0:07:19.6]} 15. Rfe1 {[%clk 0:07:17.2]} 15... Nc7
{[%clk 0:07:15.5]} 16. Nf1 {[%clk 0:06:57.7]} 16... Bb5 {[%clk 0:05:59.7]} 17.
Rad1 {[%clk 0:06:07.4]} 17... Bxd3 {[%clk 0:05:28.6]} 18. Rxd3 {[%clk
0:06:06.8]} 18... Ne6 {[%clk 0:05:22.9]} 19. Bc1 {[%clk 0:05:34]} 19... cxd4
{[%clk 0:04:23.4]} 20. cxd4 {[%clk 0:05:32.2]} 20... Rfc8 {[%clk 0:04:22.8]} 21.
Ne3 {[%clk 0:05:18.2]} 21... Bh6 {[%clk 0:04:06.6]} 22. Bd2 {[%clk 0:04:19.7]}
22... Bxe3 {[%clk 0:03:58]} 23. fxe3 {[%clk 0:04:18.1]} 23... f6 {[%clk
0:03:02.8]} 24. e4 {[%clk 0:03:44.9]} 24... dxe4 {[%clk 0:02:45.8]} 25. Rxe4
{[%clk 0:03:44.5]} 25... fxe5 {[%clk 0:02:46.9]} 26. Nxe5 {[%clk 0:03:34.3]}
26... Nf6 {[%clk 0:02:47.3]} 27. Re1 {[%clk 0:03:17.9]} 27... Nc7 {[%clk
0:02:45.9]} 28. Bg5 {[%clk 0:02:29.6]} 28... Ncd5 {[%clk 0:02:43.8]} 29. Bxf6
{[%clk 0:02:18.1]} 29... exf6 {[%clk 0:02:44]} 30. Ng4 {[%clk 0:02:06.5]} 30...
Kf7 {[%clk 0:02:34.9]} 31. Ne3 {[%clk 0:01:54.6]} 31... Re8 {[%clk 0:02:14.7]}
32. Kf2 {[%clk 0:01:53.3]} 32... Rad8 {[%clk 0:01:54.3]} 33. Nxd5 {[%clk
0:01:46.1]} 33... Rxe1 {[%clk 0:01:54.6]} 34. Kxe1 {[%clk 0:01:47.3]} 34... Rxd5
{[%clk 0:01:56.2]} 35. Kd2 {[%clk 0:01:41.9]} 35... Rb5 {[%clk 0:01:54]} 36. Kc3
{[%clk 0:01:37.4]} 36... Rg5 {[%clk 0:01:53.3]} 37. g3 {[%clk 0:01:36.9]} 37...
Ke6 {[%clk 0:01:50.3]} 38. Kc4 {[%clk 0:01:34.5]} 38... b5+ {[%clk 0:01:30.2]}
39. Kb4 {[%clk 0:01:32]} 39... Kd5 {[%clk 0:01:21.7]} 40. Kxb5 {[%clk
0:01:22.4]} 40... Ke4+ {[%clk 0:01:08.6]} 41. Kc4 {[%clk 0:01:23.2]} 41... b5+
{[%clk 0:01:10.1]} 42. Kc3 {[%clk 0:01:22.2]} 42... Rd5 {[%clk 0:01:02.9]} 43.
b3 {[%clk 0:01:14.8]} 43... h5 {[%clk 0:00:37.1]} 44. Rd1 {[%clk 0:01:02.4]}
44... Kf3 {[%clk 0:00:22.1]} 45. Rf1+ {[%clk 0:01:02.4]} 45... Kxg3 {[%clk
0:00:23.2]} 46. Rxf6 {[%clk 0:01:03]} 46... g5 {[%clk 0:00:24.2]} 47. Re6 {[%clk
0:00:57.4]} 47... Kxh3 {[%clk 0:00:07.3]} 48. Re5 {[%clk 0:00:58.3]} 48... Rxe5
{[%clk 0:00:06.7]} 49. dxe5 {[%clk 0:00:59.5]} 49... g4 {[%clk 0:00:08.2]} 50.
e6 {[%clk 0:01:00.6]} 50... g3 {[%clk 0:00:09.7]} 51. e7 {[%clk 0:01:01.9]}
51... g2 {[%clk 0:00:11.2]} 52. e8=Q {[%clk 0:01:02.8]} 52... g1=Q {[%clk
0:00:12.6]} 53. Qxh5+ {[%clk 0:01:02.3]} 53... Kg3 {[%clk 0:00:10.7]} 54. Qg5+
{[%clk 0:01:02.7]} 1-0

[Event "GrandPrix_29.05"]
[Site "Chess.com"]
[Date "2020.05.29"]
[Round "3"]
[White "SamadovRead"]
[Black "ZoranRunic1"]
[Result "1-0"]
[WhiteElo "1970"]
[BlackElo "1944"]
[TimeControl "600+2"]
[EndTime "10:27:30 PDT"]
[Termination "SamadovRead won by resignation"]

1. d4 {[%clk 0:10:01.9]} 1... Nf6 {[%clk 0:09:56.7]} 2. c4 {[%clk 0:10:02.7]}
2... c5 {[%clk 0:09:56.6]} 3. d5 {[%clk 0:10:03.1]} 3... e5 {[%clk 0:09:56.6]}
4. Nc3 {[%clk 0:10:01.8]} 4... d6 {[%clk 0:09:57.3]} 5. e4 {[%clk 0:09:57.3]}
5... Be7 {[%clk 0:09:58]} 6. g3 {[%clk 0:09:50.9]} 6... a6 {[%clk 0:09:54.1]} 7.
Bg2 {[%clk 0:09:50.9]} 7... Nbd7 {[%clk 0:09:38.3]} 8. a4 {[%clk 0:09:49.2]}
8... Nf8 {[%clk 0:09:36.1]} 9. Nf3 {[%clk 0:09:46.5]} 9... h5 {[%clk 0:09:07.7]}
10. h3 {[%clk 0:09:32]} 10... h4 {[%clk 0:09:03.9]} 11. Nxh4 {[%clk 0:09:17.2]}
11... Rxh4 {[%clk 0:08:40.9]} 12. gxh4 {[%clk 0:09:17.6]} 12... Ng6 {[%clk
0:08:41.3]} 13. Bg5 {[%clk 0:08:32.9]} 13... Nh7 {[%clk 0:07:47.3]} 14. Bxe7
{[%clk 0:08:02.2]} 14... Qxe7 {[%clk 0:07:45.3]} 15. Bf3 {[%clk 0:07:38.6]}
15... Nxh4 {[%clk 0:07:03.7]} 16. Bg4 {[%clk 0:07:35.6]} 16... Ng5 {[%clk
0:06:45]} 17. Bxc8 {[%clk 0:07:14.9]} 17... Ngf3+ {[%clk 0:06:42.2]} 18. Kf1
{[%clk 0:07:06.4]} 18... Rxc8 {[%clk 0:06:41.7]} 19. Ne2 {[%clk 0:06:51.9]}
19... Qg5 {[%clk 0:06:05.8]} 20. Ng3 {[%clk 0:06:44.3]} 20... g6 {[%clk
0:04:12.2]} 21. Qc1 {[%clk 0:05:10.8]} 21... Qf6 {[%clk 0:04:01.9]} 22. Ra3
{[%clk 0:04:56.7]} 22... Nd4 {[%clk 0:03:36.8]} 23. Ne2 {[%clk 0:04:33.5]} 23...
Ndf3 {[%clk 0:03:17]} 24. Ng1 {[%clk 0:03:59.1]} 24... Ng5 {[%clk 0:03:04.7]}
25. Qe3 {[%clk 0:03:50.5]} 25... Kf8 {[%clk 0:02:54.2]} 26. Rb3 {[%clk
0:03:42.3]} 26... Rc7 {[%clk 0:02:53.1]} 27. Rh2 {[%clk 0:03:10.6]} 27... Kg7
{[%clk 0:02:48.9]} 28. f3 {[%clk 0:03:03.9]} 28... Qd8 {[%clk 0:02:36.2]} 29. f4
{[%clk 0:02:54.7]} 29... exf4 {[%clk 0:02:16.8]} 30. Qxf4 {[%clk 0:02:55.1]}
30... Nh7 {[%clk 0:02:02.6]} 31. e5 {[%clk 0:02:36.6]} 31... dxe5 {[%clk
0:01:52.2]} 32. Qxe5+ {[%clk 0:02:36.9]} 32... f6 {[%clk 0:01:51.3]} 33. Qe4
{[%clk 0:02:30.2]} 33... Nf5 {[%clk 0:01:49]} 34. Rg2 {[%clk 0:02:09.6]} 34...
Ng5 {[%clk 0:01:45.3]} 35. Rxg5 {[%clk 0:01:49.9]} 35... fxg5 {[%clk 0:01:41.4]}
36. Qe5+ {[%clk 0:01:51.1]} 36... Kh7 {[%clk 0:01:38.6]} 37. Nf3 {[%clk
0:01:48.9]} 37... Kh6 {[%clk 0:01:24.1]} 38. Rb6 {[%clk 0:01:32]} 38... Rf7
{[%clk 0:01:12.6]} 39. Qe6 {[%clk 0:01:22]} 39... Qg8 {[%clk 0:01:10.2]} 40.
Rxb7 {[%clk 0:00:59.7]} 40... Nd6 {[%clk 0:00:55.8]} 41. Rxf7 {[%clk 0:00:57.5]}
41... Qxf7 {[%clk 0:00:55.7]} 42. Qxf7 {[%clk 0:00:52.3]} 42... Nxf7 {[%clk
0:00:56.5]} 43. Kf2 {[%clk 0:00:40.7]} 43... Nd6 {[%clk 0:00:56.5]} 44. b3
{[%clk 0:00:41.7]} 44... Kh5 {[%clk 0:00:57.2]} 45. Ne5 {[%clk 0:00:33.2]} 45...
Kh4 {[%clk 0:00:54.2]} 46. Kg2 {[%clk 0:00:32.1]} 46... Kh5 {[%clk 0:00:53.3]}
47. Nd3 {[%clk 0:00:27]} 47... Nb7 {[%clk 0:00:53.8]} 48. b4 {[%clk 0:00:26.2]}
48... cxb4 {[%clk 0:00:53.7]} 49. Nxb4 {[%clk 0:00:27.8]} 49... Nc5 {[%clk
0:00:53.2]} 50. d6 {[%clk 0:00:26.7]} 50... g4 {[%clk 0:00:47.6]} 51. hxg4+
{[%clk 0:00:26.9]} 51... Kxg4 {[%clk 0:00:48.2]} 52. Nxa6 {[%clk 0:00:27.4]} 1-0

[Event "GrandPrix_29.05"]
[Site "Chess.com"]
[Date "2020.05.29"]
[Round "3"]
[White "Arseniy_Nesterov"]
[Black "RussianChessFighter"]
[Result "0-1"]
[WhiteElo "2228"]
[BlackElo "2329"]
[TimeControl "600+2"]
[EndTime "10:27:32 PDT"]
[Termination "RussianChessFighter won on time"]

1. d4 {[%clk 0:10:01.2]} 1... f5 {[%clk 0:09:55]} 2. c4 {[%clk 0:10:00.9]} 2...
Nf6 {[%clk 0:09:47.7]} 3. Nf3 {[%clk 0:10:01.4]} 3... g6 {[%clk 0:09:46.6]} 4.
e3 {[%clk 0:10:02]} 4... Bg7 {[%clk 0:09:48.1]} 5. b4 {[%clk 0:10:02.9]} 5...
O-O {[%clk 0:09:50]} 6. Bb2 {[%clk 0:10:03.5]} 6... c6 {[%clk 0:09:40.8]} 7. Be2
{[%clk 0:10:03.7]} 7... d5 {[%clk 0:09:40.4]} 8. O-O {[%clk 0:10:04.3]} 8... e6
{[%clk 0:09:40]} 9. Nbd2 {[%clk 0:09:57.5]} 9... Nbd7 {[%clk 0:09:35.5]} 10. Ne1
{[%clk 0:09:51.4]} 10... Ne4 {[%clk 0:09:20.8]} 11. Rc1 {[%clk 0:09:04.7]} 11...
a5 {[%clk 0:08:22.9]} 12. b5 {[%clk 0:08:51.3]} 12... a4 {[%clk 0:08:20.9]} 13.
Nd3 {[%clk 0:08:09.8]} 13... cxb5 {[%clk 0:07:39.2]} 14. cxd5 {[%clk 0:06:25.4]}
14... a3 {[%clk 0:07:16.2]} 15. Ba1 {[%clk 0:05:47]} 15... exd5 {[%clk
0:07:15.5]} 16. Nf4 {[%clk 0:05:23.3]} 16... Ndf6 {[%clk 0:06:52.1]} 17. Bxb5
{[%clk 0:05:08.8]} 17... g5 {[%clk 0:05:51.3]} 18. Ne2 {[%clk 0:04:56.1]} 18...
Be6 {[%clk 0:05:39.2]} 19. Nb3 {[%clk 0:03:45.2]} 19... Qd6 {[%clk 0:04:44.3]}
20. f3 {[%clk 0:03:11]} 20... Qb6 {[%clk 0:04:31]} 21. Bd3 {[%clk 0:02:41.1]}
21... Nd6 {[%clk 0:04:30.3]} 22. Nc5 {[%clk 0:02:40.6]} 22... Rfe8 {[%clk
0:04:31.1]} 23. Rb1 {[%clk 0:02:35.1]} 23... Qc7 {[%clk 0:04:26.7]} 24. Qd2
{[%clk 0:01:10.4]} 24... Bf7 {[%clk 0:02:46]} 25. Ng3 {[%clk 0:00:56.7]} 25...
b6 {[%clk 0:02:34.5]} 26. Na6 {[%clk 0:00:34]} 26... Qd8 {[%clk 0:01:43.3]} 27.
Nb4 {[%clk 0:00:31]} 27... Qd7 {[%clk 0:01:38.4]} 28. Rfc1 {[%clk 0:00:23.6]}
28... Nc4 {[%clk 0:01:36.8]} 29. Bxc4 {[%clk 0:00:19.8]} 29... dxc4 {[%clk
0:01:38.7]} 30. Re1 {[%clk 0:00:20.3]} 30... Bg6 {[%clk 0:01:01.4]} 31. d5
{[%clk 0:00:15.5]} 31... f4 {[%clk 0:00:32.3]} 32. exf4 {[%clk 0:00:10.9]} 32...
gxf4 {[%clk 0:00:33.1]} 33. Qxf4 {[%clk 0:00:08.7]} 33... Bxb1 {[%clk
0:00:31.6]} 34. Rxb1 {[%clk 0:00:08.9]} 34... Nxd5 {[%clk 0:00:17.2]} 35. Qxc4
{[%clk 0:00:09.6]} 35... Rad8 {[%clk 0:00:16.3]} 36. Rd1 {[%clk 0:00:07.5]}
36... Bxa1 {[%clk 0:00:16]} 37. Rxd5 {[%clk 0:00:05.5]} 37... Qf7 {[%clk
0:00:15.4]} 38. Ne4 {[%clk 0:00:03.1]} 38... Rxd5 {[%clk 0:00:15.1]} 39. Nxd5
{[%clk 0:00:02.9]} 39... h6 {[%clk 0:00:14.3]} 0-1

[Event "GrandPrix_29.05"]
[Site "Chess.com"]
[Date "2020.05.29"]
[Round "3"]
[White "Iljin_Timofey"]
[Black "etserga"]
[Result "0-1"]
[WhiteElo "2278"]
[BlackElo "2357"]
[TimeControl "600+2"]
[EndTime "10:27:37 PDT"]
[Termination "etserga won by checkmate"]

1. d4 {[%clk 0:09:54.6]} 1... d5 {[%clk 0:09:56.6]} 2. c4 {[%clk 0:09:51.1]}
2... c6 {[%clk 0:09:56.6]} 3. Nc3 {[%clk 0:09:39]} 3... Nf6 {[%clk 0:09:56.2]}
4. Nf3 {[%clk 0:09:39.7]} 4... e6 {[%clk 0:09:56.4]} 5. e3 {[%clk 0:09:39.8]}
5... a6 {[%clk 0:09:56.2]} 6. b3 {[%clk 0:09:39.5]} 6... Bb4 {[%clk 0:09:55.3]}
7. Bd2 {[%clk 0:09:29.6]} 7... Bd6 {[%clk 0:09:55.4]} 8. Bd3 {[%clk 0:08:55.4]}
8... c5 {[%clk 0:09:53.6]} 9. cxd5 {[%clk 0:07:58.8]} 9... exd5 {[%clk
0:09:51.9]} 10. dxc5 {[%clk 0:07:55.8]} 10... Bxc5 {[%clk 0:09:50.4]} 11. h3
{[%clk 0:07:56.7]} 11... O-O {[%clk 0:09:44]} 12. O-O {[%clk 0:07:56.6]} 12...
Nc6 {[%clk 0:09:42]} 13. Ne2 {[%clk 0:07:43.8]} 13... Ne4 {[%clk 0:09:16.9]} 14.
Rc1 {[%clk 0:07:17.1]} 14... Qe7 {[%clk 0:08:36.8]} 15. Nf4 {[%clk 0:07:05.6]}
15... Rd8 {[%clk 0:08:31.9]} 16. Qc2 {[%clk 0:06:51.5]} 16... Ba3 {[%clk
0:08:17]} 17. Rcd1 {[%clk 0:06:03.4]} 17... Bf5 {[%clk 0:08:05.5]} 18. Qb1
{[%clk 0:05:21.6]} 18... Rac8 {[%clk 0:07:44.8]} 19. Ne2 {[%clk 0:05:02.2]}
19... Nb4 {[%clk 0:07:03.6]} 20. Bxb4 {[%clk 0:04:51.5]} 20... Bxb4 {[%clk
0:07:03]} 21. Nfd4 {[%clk 0:04:49.1]} 21... Bg6 {[%clk 0:07:00.9]} 22. Qb2
{[%clk 0:04:22]} 22... Ba3 {[%clk 0:06:48.3]} 23. Qa1 {[%clk 0:04:21.5]} 23...
Qf6 {[%clk 0:06:21.4]} 24. Nf4 {[%clk 0:03:12.6]} 24... Nc3 {[%clk 0:06:05.6]}
25. Rd2 {[%clk 0:03:04]} 25... Be4 {[%clk 0:05:57.1]} 26. f3 {[%clk 0:02:29.9]}
26... Bg6 {[%clk 0:04:22]} 27. Bxg6 {[%clk 0:02:21.3]} 27... hxg6 {[%clk
0:04:18.3]} 28. Rd3 {[%clk 0:02:23.2]} 28... g5 {[%clk 0:03:50.2]} 29. Nh5
{[%clk 0:02:02.9]} 29... Qg6 {[%clk 0:03:36.8]} 30. Rxc3 {[%clk 0:02:03.3]}
30... Qxh5 {[%clk 0:03:36.7]} 31. Rd1 {[%clk 0:02:00.5]} 31... Qg6 {[%clk
0:03:25.2]} 32. Rcd3 {[%clk 0:01:54.2]} 32... Bc5 {[%clk 0:03:06.1]} 33. Qb1
{[%clk 0:01:15.4]} 33... Bb6 {[%clk 0:03:00.1]} 34. R3d2 {[%clk 0:01:11.5]}
34... Qf6 {[%clk 0:02:55.9]} 35. Qd3 {[%clk 0:01:06.8]} 35... Qe5 {[%clk
0:02:42.4]} 36. Kh1 {[%clk 0:01:06.5]} 36... Re8 {[%clk 0:02:32.8]} 37. Nf5
{[%clk 0:01:00.8]} 37... g6 {[%clk 0:02:25.8]} 38. Nh6+ {[%clk 0:00:55.6]} 38...
Kg7 {[%clk 0:02:19.7]} 39. Ng4 {[%clk 0:00:57.5]} 39... Qg3 {[%clk 0:02:03.8]}
40. Qxd5 {[%clk 0:00:58.1]} 40... Rcd8 {[%clk 0:02:00.6]} 41. Qxd8 {[%clk
0:00:31]} 41... Rxd8 {[%clk 0:01:57.9]} 42. Rxd8 {[%clk 0:00:32.9]} 42... Bxd8
{[%clk 0:01:56.3]} 43. Rxd8 {[%clk 0:00:34.8]} 43... Qc7 {[%clk 0:01:43.7]} 44.
Rd4 {[%clk 0:00:21.4]} 44... f5 {[%clk 0:01:40]} 45. Nf2 {[%clk 0:00:21.8]}
45... Qc1+ {[%clk 0:01:39.5]} 46. Nd1 {[%clk 0:00:22.8]} 46... Qc2 {[%clk
0:01:39.3]} 47. b4 {[%clk 0:00:15]} 47... Qxa2 {[%clk 0:01:34.6]} 48. Kh2 {[%clk
0:00:13.9]} 48... Qc2 {[%clk 0:01:33.4]} 49. e4 {[%clk 0:00:08.3]} 49... b6
{[%clk 0:01:23.7]} 50. exf5 {[%clk 0:00:05.8]} 50... gxf5 {[%clk 0:01:23.7]} 51.
Kg1 {[%clk 0:00:05.4]} 51... a5 {[%clk 0:01:22.6]} 52. bxa5 {[%clk 0:00:07.3]}
52... Qc5 {[%clk 0:01:22.2]} 53. Ne3 {[%clk 0:00:07.2]} 53... Qxd4 {[%clk
0:01:22.4]} 54. Kf2 {[%clk 0:00:07.9]} 54... f4 {[%clk 0:01:23]} 55. h4 {[%clk
0:00:08.6]} 55... fxe3+ {[%clk 0:01:22.5]} 56. Kf1 {[%clk 0:00:10.5]} 56... Qd2
{[%clk 0:01:22.7]} 57. Kg1 {[%clk 0:00:11]} 57... e2 {[%clk 0:01:23.3]} 58. Kh2
{[%clk 0:00:12.8]} 58... e1=Q {[%clk 0:01:23.2]} 59. hxg5 {[%clk 0:00:14.7]}
59... Qf4+ {[%clk 0:01:22.4]} 60. Kh3 {[%clk 0:00:15.1]} 60... Qfg3# {[%clk
0:01:23]} 0-1

[Event "GrandPrix_29.05"]
[Site "Chess.com"]
[Date "2020.05.29"]
[Round "3"]
[White "imdvb6307"]
[Black "A_N_D-R_E_I"]
[Result "1-0"]
[WhiteElo "2036"]
[BlackElo "2050"]
[TimeControl "600+2"]
[EndTime "10:27:45 PDT"]
[Termination "imdvb6307 won by resignation"]

1. Nf3 {[%clk 0:09:56.5]} 1... d5 {[%clk 0:09:59]} 2. c4 {[%clk 0:09:54.6]} 2...
c6 {[%clk 0:09:56.8]} 3. d4 {[%clk 0:09:44.5]} 3... Nf6 {[%clk 0:09:57.1]} 4.
Nbd2 {[%clk 0:09:44]} 4... e6 {[%clk 0:09:47.2]} 5. g3 {[%clk 0:09:41.4]} 5...
Be7 {[%clk 0:09:19]} 6. Bg2 {[%clk 0:09:39.2]} 6... O-O {[%clk 0:09:19.7]} 7.
O-O {[%clk 0:09:38.4]} 7... b5 {[%clk 0:09:20.3]} 8. cxb5 {[%clk 0:09:17.7]}
8... cxb5 {[%clk 0:09:22.2]} 9. Ne5 {[%clk 0:09:18.7]} 9... Bb7 {[%clk
0:09:20.1]} 10. Nb3 {[%clk 0:09:17.5]} 10... Nbd7 {[%clk 0:09:17.7]} 11. Nd3
{[%clk 0:09:16]} 11... a5 {[%clk 0:08:51.9]} 12. Bg5 {[%clk 0:08:59.6]} 12... a4
{[%clk 0:08:50.9]} 13. Bxf6 {[%clk 0:08:59.1]} 13... gxf6 {[%clk 0:07:41.4]} 14.
Nbc5 {[%clk 0:08:58.3]} 14... Nxc5 {[%clk 0:07:41.9]} 15. Nxc5 {[%clk
0:08:52.2]} 15... Bxc5 {[%clk 0:07:42.4]} 16. dxc5 {[%clk 0:08:53.2]} 16... Qc7
{[%clk 0:07:43.9]} 17. Rc1 {[%clk 0:08:33.4]} 17... Rfc8 {[%clk 0:07:23]} 18. f4
{[%clk 0:08:23]} 18... f5 {[%clk 0:06:43.1]} 19. Qd4 {[%clk 0:08:21.7]} 19...
Qa5 {[%clk 0:06:07.1]} 20. Bf3 {[%clk 0:07:32.3]} 20... Qc7 {[%clk 0:04:52.3]}
21. b4 {[%clk 0:07:04.1]} 21... axb3 {[%clk 0:04:47.9]} 22. axb3 {[%clk
0:07:04.2]} 22... Qe7 {[%clk 0:04:11.4]} 23. b4 {[%clk 0:06:44.8]} 23... Ra4
{[%clk 0:04:10.2]} 24. Rb1 {[%clk 0:06:39.2]} 24... Bc6 {[%clk 0:04:07.1]} 25.
Kh1 {[%clk 0:06:37]} 25... f6 {[%clk 0:03:48]} 26. Qd3 {[%clk 0:06:31.9]} 26...
Kh8 {[%clk 0:03:23]} 27. Rg1 {[%clk 0:06:27.8]} 27... Rg8 {[%clk 0:03:14.5]} 28.
h3 {[%clk 0:05:44.2]} 28... Qg7 {[%clk 0:02:31.6]} 29. Kh2 {[%clk 0:05:33.8]}
29... Qh6 {[%clk 0:02:27.2]} 30. Qc3 {[%clk 0:03:13.5]} 30... Rga8 {[%clk
0:02:19.9]} 31. Ra1 {[%clk 0:03:12.7]} 31... Qf8 {[%clk 0:01:40.2]} 32. Rxa4
{[%clk 0:03:11.2]} 32... Rxa4 {[%clk 0:01:40.5]} 33. Ra1 {[%clk 0:03:12.2]}
33... Rxa1 {[%clk 0:01:09.9]} 34. Qxa1 {[%clk 0:03:11.9]} 34... Qe7 {[%clk
0:01:01.4]} 35. Qa5 {[%clk 0:03:04]} 35... Kg7 {[%clk 0:00:58.9]} 36. Qb6 {[%clk
0:02:57.4]} 36... Qb7 {[%clk 0:00:59.2]} 37. Qxb7+ {[%clk 0:02:51.3]} 37... Bxb7
{[%clk 0:01:00]} 38. g4 {[%clk 0:02:49.6]} 38... Kg6 {[%clk 0:00:53.9]} 39. e3
{[%clk 0:02:47.6]} 39... fxg4 {[%clk 0:00:41.2]} 40. hxg4 {[%clk 0:02:46.1]}
40... e5 {[%clk 0:00:25.5]} 41. Kg3 {[%clk 0:02:25]} 41... Bc6 {[%clk
0:00:25.8]} 42. Be2 {[%clk 0:02:15.7]} 42... h6 {[%clk 0:00:19.6]} 43. Bd3+
{[%clk 0:02:15.4]} 43... Kg7 {[%clk 0:00:20.6]} 44. Bf5 {[%clk 0:02:09.7]} 44...
Kf7 {[%clk 0:00:18]} 45. fxe5 {[%clk 0:01:13.7]} 45... fxe5 {[%clk 0:00:18.7]}
46. Kh4 {[%clk 0:01:14.6]} 46... Kf6 {[%clk 0:00:09.9]} 47. Kh5 {[%clk
0:01:09.9]} 47... Kg7 {[%clk 0:00:10.7]} 48. g5 {[%clk 0:01:08.6]} 48... hxg5
{[%clk 0:00:06.3]} 49. Kxg5 {[%clk 0:01:09.3]} 49... Kf7 {[%clk 0:00:07.2]} 50.
Bc8 {[%clk 0:01:00.2]} 50... d4 {[%clk 0:00:07.8]} 51. exd4 {[%clk 0:01:00.6]}
51... exd4 {[%clk 0:00:09.7]} 52. Bf5 {[%clk 0:01:01.2]} 52... Bd5 {[%clk
0:00:08.5]} 53. Kf4 {[%clk 0:01:01.3]} 53... Ke7 {[%clk 0:00:08]} 54. Ke5 {[%clk
0:01:01.6]} 54... Bc4 {[%clk 0:00:06.6]} 55. Kxd4 {[%clk 0:01:02.5]} 55... Kf6
{[%clk 0:00:08]} 56. Bd3 {[%clk 0:01:02.7]} 1-0

[Event "GrandPrix_29.05"]
[Site "Chess.com"]
[Date "2020.05.29"]
[Round "3"]
[White "Alex_Molchanov"]
[Black "rasmussvane"]
[Result "0-1"]
[WhiteElo "2100"]
[BlackElo "2362"]
[TimeControl "600+2"]
[EndTime "10:27:46 PDT"]
[Termination "rasmussvane won by resignation"]

1. c4 {[%clk 0:10:01.9]} 1... e6 {[%clk 0:09:59.9]} 2. Nf3 {[%clk 0:10:00.9]}
2... d5 {[%clk 0:10:01.2]} 3. g3 {[%clk 0:10:01.1]} 3... Nf6 {[%clk 0:10:01.2]}
4. Bg2 {[%clk 0:10:01.6]} 4... Be7 {[%clk 0:10:02.7]} 5. O-O {[%clk 0:10:02]}
5... O-O {[%clk 0:10:04]} 6. b3 {[%clk 0:09:48.2]} 6... d4 {[%clk 0:10:04.6]} 7.
Bb2 {[%clk 0:09:42.4]} 7... c5 {[%clk 0:10:05.5]} 8. e3 {[%clk 0:09:43]} 8...
Nc6 {[%clk 0:10:05.8]} 9. exd4 {[%clk 0:09:43.9]} 9... cxd4 {[%clk 0:10:07]} 10.
d3 {[%clk 0:09:42.6]} 10... Re8 {[%clk 0:09:54.8]} 11. a3 {[%clk 0:09:42.7]}
11... a5 {[%clk 0:09:54.6]} 12. Nbd2 {[%clk 0:09:36.2]} 12... e5 {[%clk
0:09:54.4]} 13. Re1 {[%clk 0:09:34.4]} 13... Bd6 {[%clk 0:09:39.3]} 14. Rc1
{[%clk 0:09:32.8]} 14... Bc5 {[%clk 0:09:26.5]} 15. Ng5 {[%clk 0:09:21.5]} 15...
Bg4 {[%clk 0:09:13.7]} 16. f3 {[%clk 0:08:53.8]} 16... Bf5 {[%clk 0:09:12.8]}
17. Nge4 {[%clk 0:08:49]} 17... Bf8 {[%clk 0:08:39.4]} 18. Nxf6+ {[%clk
0:08:44.2]} 18... Qxf6 {[%clk 0:08:38.7]} 19. Ne4 {[%clk 0:08:44.5]} 19... Qd8
{[%clk 0:08:13.7]} 20. Rc2 {[%clk 0:07:59.1]} 20... Bg6 {[%clk 0:08:06.1]} 21.
Rce2 {[%clk 0:07:50.9]} 21... f5 {[%clk 0:07:30.3]} 22. Nf2 {[%clk 0:07:48.7]}
22... Bc5 {[%clk 0:07:31.5]} 23. Bc1 {[%clk 0:07:41.2]} 23... Qd6 {[%clk
0:07:08.9]} 24. Ra2 {[%clk 0:07:15]} 24... Rad8 {[%clk 0:07:03.7]} 25. Kh1
{[%clk 0:07:14.6]} 25... Qf8 {[%clk 0:05:37.3]} 26. f4 {[%clk 0:06:15.6]} 26...
exf4 {[%clk 0:05:36.7]} 27. Bxf4 {[%clk 0:06:12.8]} 27... Bxa3 {[%clk
0:05:24.2]} 28. Rae2 {[%clk 0:05:56.6]} 28... Rxe2 {[%clk 0:05:08.2]} 29. Qxe2
{[%clk 0:05:44.2]} 29... Bb4 {[%clk 0:05:07.2]} 30. Bd2 {[%clk 0:05:24.4]} 30...
h6 {[%clk 0:04:04.3]} 31. Nh3 {[%clk 0:05:16.4]} 31... Re8 {[%clk 0:03:40.8]}
32. Qf2 {[%clk 0:04:20.5]} 32... Ne5 {[%clk 0:02:22.9]} 33. Rxe5 {[%clk
0:04:18.4]} 33... Rxe5 {[%clk 0:02:19.9]} 34. Nf4 {[%clk 0:04:17.7]} 34... Bf7
{[%clk 0:02:11.9]} 35. Qxd4 {[%clk 0:03:40.7]} 35... Qe7 {[%clk 0:01:13.9]} 36.
Bxb4 {[%clk 0:03:25.5]} 36... axb4 {[%clk 0:01:15.8]} 37. h4 {[%clk 0:03:19.9]}
37... Re1+ {[%clk 0:01:13.3]} 38. Kh2 {[%clk 0:03:19.5]} 38... Qe3 {[%clk
0:00:26]} 39. Qd8+ {[%clk 0:02:58.8]} 39... Kh7 {[%clk 0:00:27]} 40. Qd7 {[%clk
0:02:38.2]} 40... Be6 {[%clk 0:00:17.5]} 41. Qxb7 {[%clk 0:02:32.9]} 41... Qg1+
{[%clk 0:00:14.1]} 42. Kh3 {[%clk 0:02:33.5]} 42... Re3 {[%clk 0:00:16]} 43.
Nxe6 {[%clk 0:01:35.2]} 43... Rxe6 {[%clk 0:00:17.1]} 44. Qc8 {[%clk 0:01:32.6]}
44... Qe1 {[%clk 0:00:11.1]} 45. Bd5 {[%clk 0:01:28.4]} 45... Qf1+ {[%clk
0:00:11.7]} 46. Bg2 {[%clk 0:01:26.8]} 46... Qe2 {[%clk 0:00:12.9]} 47. Bd5
{[%clk 0:00:28.5]} 47... Qg4+ {[%clk 0:00:13]} 48. Kh2 {[%clk 0:00:30]} 48...
Re2+ {[%clk 0:00:13.8]} 49. Bg2 {[%clk 0:00:28.3]} 49... Qf3 {[%clk 0:00:10.9]}
0-1